fUST/lending_fUST_20240805
["ID","MTS","AMOUNT","RATE_DAILY","PERIOD"]
[334213197,1722843039543,-500.0,0.00013699,2]
[334213198,1722843039552,-484.81179144,0.00013699,2]
[334213199,1722843039563,-3050.79735622,0.00018356,2]
[334213204,1722843039853,-6591.76455549,0.00018356,2]
[334213207,1722843039865,-100000.0,0.00018999,2]
[334213211,1722843039876,-121.55151907,0.00019139,2]
[334213216,1722843039887,-500.0,0.00019139,2]
[334213220,1722843039899,-500.0,0.00019139,2]
[334213224,1722843039909,-500.0,0.00019139,2]
[334213230,1722843039919,-500.0,0.00019139,2]
[334213235,1722843039929,-500.0,0.00019139,2]
[334213240,1722843039940,-1678.49183443,0.0001914,2]
[334213243,1722843039950,-290.490241,0.00019142,2]
[334213249,1722843039959,-321.087861,0.00019142,2]
[334213253,1722843039969,-1299.642987,0.00019142,2]
[334213256,1722843039979,-1284.351448,0.00019142,2]
[334213259,1722843039990,-1643.15842058,0.00019155,7]
[334213261,1722843040000,-3087.63872233,0.00019155,2]
[334213263,1722843040010,-1162.86940617,0.00019167,2]
[334213264,1722843040019,-277.18370616,0.00019167,2]
[334213266,1722843040040,-7775.14481469,0.00019167,2]
[334213268,1722843040049,-183.255487,0.00019178,2]
[334213270,1722843040060,-1939.58284202,0.00019231,2]
[334213272,1722843040069,-2278.204521,0.00019256,3]
[334213273,1722843040079,-1091.69139402,0.00019256,2]
[334213275,1722843040088,-1715.68394884,0.00019256,2]
[334213277,1722843040098,-165.940847,0.00019279,2]
[334213279,1722843040107,-1433.0,0.00019366,2]
[334213280,1722843040117,-157.673059,0.00019373,2]
[334213281,1722843040128,-172.102529,0.00019373,2]
[334213282,1722843040137,-290.490241,0.00019373,2]
[334213283,1722843040147,-321.087861,0.00019373,2]
[334213284,1722843040157,-1299.642987,0.00019373,2]
[334213285,1722843040167,-1284.351448,0.00019373,2]
[334213286,1722843040176,-2124.51614001,0.00019451,2]
[334213287,1722843040186,-2124.51614001,0.00019451,2]
[334213288,1722843040196,-1610.68802731,0.00019451,2]
[334213289,1722843040206,-512.88387693,0.00019477,10]
[334213290,1722843040215,-1382.92970052,0.00019477,2]
[334213291,1722843040226,-1438.29474334,0.00019477,2]
[334213292,1722843040235,-1438.29474334,0.00019477,2]
[334213293,1722843040245,-336.1881449,0.00019477,2]
[334213294,1722843040255,-309.50481162,0.00019547,2]
[334213295,1722843040265,-20759.5327798,0.00019547,2]
[334213296,1722843040277,-1763.49757797,0.00019547,2]
[334213297,1722843040294,-1939.58284202,0.00019803,2]
[334213298,1722843040303,-200.0,0.00019973,2]
[334213299,1722843040313,-183.12142007,0.00019999,2]
[334213300,1722843040323,-808.0041696,0.00019999,2]
[334213301,1722843040332,-2139.16821494,0.00019999,2]
[334213302,1722843040342,-37626.03860216,0.0002,5]
[334213303,1722843040352,-156.35315554,0.0002,2]
[334213304,1722843040361,-35000.0,0.0002,2]
[334213305,1722843040371,-1363.34392567,0.0002,2]
[334213306,1722843040381,-1632.70804043,0.0002,2]
[334213307,1722843040390,-939.092334,0.0002,2]
[334213308,1722843040400,-154.79103211,0.0002,2]
[334213309,1722843040410,-294.09032939,0.0002,2]
[334213310,1722843040420,-1061.01164336,0.0002,2]
[334213311,1722843040429,-2848.79958348,0.0002028,2]
[334213312,1722843040439,-163.08091826,0.0002028,2]
[334213313,1722843040449,-205.20449904,0.0002028,2]
[334213314,1722843040460,-1939.58284202,0.00020376,2]
[334213315,1722843040471,-218.0361,0.00020707,2]
[334213316,1722843040481,-209.20156569,0.00020721,2]
[334213317,1722843040491,-209.20156569,0.00020721,2]
[334213318,1722843040500,-154.86419481,0.00020721,2]
[334213319,1722843040510,-19694.95484504,0.00020898,3]
[334213320,1722843040519,-408.66985497,0.00020948,2]
[334213321,1722843040536,-1939.58284202,0.00020948,2]
[334213322,1722843040546,-296.95255386,0.00020998,2]
[334213323,1722843040556,-174.54270234,0.00020999,2]
[334213324,1722843040565,-309.45844772,0.00020999,2]
[334213325,1722843040575,-188.24924053,0.00020999,2]
[334213326,1722843040584,-181.8591033,0.00020999,2]
[334213327,1722843040593,-160.1642143,0.00020999,2]
[334213328,1722843040603,-951.80625463,0.00020999,2]
[334213329,1722843040612,-209.86849569,0.00020999,2]
[334213330,1722843040623,-150.112233,0.00021,4]
[334213331,1722843040710,-3000.0,0.00021,2]
[334213332,1722843040720,-72052.06665305,0.00021,2]
[334213333,1722843040730,-3000.0,0.0002101,2]
[334213334,1722843040739,-319.75385853,0.00021011,2]
[334213335,1722843040749,-158.13736821,0.00021011,2]
[334213336,1722843040758,-165.54898858,0.00021011,2]
[334213337,1722843040769,-413.73440189,0.00021011,2]
[334213338,1722843040786,-519.59956575,0.00021011,2]
[334213339,1722843040795,-154.83742071,0.00021011,2]
[334213340,1722843040804,-254.97505895,0.00021011,2]
[334213341,1722843040813,-280.37012538,0.00021011,2]
[334213342,1722843040823,-154.83742071,0.00021011,2]
[334213343,1722843040832,-156.74439841,0.00021011,2]
[334213344,1722843040841,-573.15262334,0.00021011,2]
[334213345,1722843040851,-156.8188046,0.00021011,2]
[334213346,1722843040860,-206.82545521,0.00021011,2]
[334213347,1722843040870,-568.56884199,0.00021011,2]
[334213348,1722843040880,-240.82219567,0.00021011,2]
[334213349,1722843040890,-154.79103211,0.00021011,2]
[334213350,1722843040899,-305.42819777,0.00021011,2]
[334213351,1722843040908,-154.83742071,0.00021011,2]
[334213353,1722843040920,-404.2656183,0.00021011,2]
[334213355,1722843040930,-695.1835415,0.00021011,2]
[334213357,1722843040939,-3000.0,0.0002102,2]
[334213359,1722843040949,-3000.0,0.0002103,2]
[334213360,1722843040958,-3000.0,0.0002104,2]
[334213362,1722843040967,-342.05014288,0.00021048,2]
[334213363,1722843040977,-600.90391779,0.00021048,2]
[334213364,1722843040987,-194.58009581,0.00021048,2]
[334213365,1722843040996,-664.23911189,0.00021048,2]
[334213366,1722843041005,-154.83742071,0.00021048,2]
[334213367,1722843041015,-727.58928536,0.00021048,2]
[334213368,1722843041027,-845.54644341,0.00021048,2]
[334213369,1722843041039,-154.79103211,0.00021048,2]
[334213370,1722843041048,-196.48473354,0.00021048,2]
[334213371,1722843041057,-34682.8430694,0.00021048,2]
[334213372,1722843041070,-329.5750625,0.00021048,2]
[334213373,1722843041079,-3000.0,0.0002105,2]
[334213374,1722843041088,-3000.0,0.0002106,2]
[334213375,1722843041098,-3000.0,0.0002107,2]
[334213376,1722843041107,-3000.0,0.0002108,2]
[334213377,1722843041116,-3000.0,0.0002109,2]
[334213378,1722843041125,-4577.550296,0.000211,2]
[334213379,1722843041135,-400.0,0.00021342,2]
[334213380,1722843041144,-154.79103211,0.0002142,2]
[334213381,1722843041155,-533.92328189,0.0002142,2]
[334213382,1722843041165,-459.69835721,0.0002142,4]
[334213383,1722843041174,-849.47006365,0.0002142,2]
[334213384,1722843041184,-426.99038561,0.00021532,2]
[334213385,1722843041193,-196.74507213,0.00021532,2]
[334213386,1722843041203,-426.99038561,0.00021532,2]
[334213387,1722843041214,-309.47389515,0.00021532,2]
[334213388,1722843041224,-532.20149829,0.00021532,2]
[334213389,1722843041235,-154.83742071,0.00021542,2]
[334213390,1722843041244,-154.79103211,0.00021542,2]
[334213391,1722843041253,-825.71908644,0.00021542,2]
[334213392,1722843041263,-201.4920041,0.00021589,2]
[334213394,1722843041272,-154.8978834,0.00021591,2]
[334213396,1722843041289,-494.27988772,0.00021591,2]
[334213398,1722843041299,-154.79103211,0.00021599,2]
[334213399,1722843041308,-287.79610663,0.00021599,2]
[334213400,1722843041319,-154.89435374,0.00021599,2]
[334213401,1722843041328,-244.84557874,0.00021602,2]
[334213402,1722843041337,-301.01889679,0.00021609,2]
[334213403,1722843041347,-522.32545193,0.00021609,2]
[334213404,1722843041357,-274.44831486,0.00021609,2]
[334213406,1722843041368,-157.81947129,0.00021632,2]
[334213408,1722843041378,-224.61143175,0.00021632,2]
[334213410,1722843041389,-4460.06758135,0.00021642,2]
[334213411,1722843041403,-37881.64633001,0.00021642,2]
[334213413,1722843041412,-157.75034945,0.00021642,2]
[334213415,1722843041423,-157.75034945,0.00021642,2]
[334213417,1722843041433,-1820.65458778,0.00021796,2]
[334213419,1722843041442,-21904.53468543,0.00021906,2]
[334213421,1722843041452,-154.83742071,0.00021916,2]
[334213422,1722843041463,-156.61103376,0.00021916,2]
[334213424,1722843041473,-11795.65,0.00022,14]
[334213426,1722843041483,-639.7,0.00022,7]
[334213428,1722843041492,-597.19,0.00022,14]
[334213430,1722843041502,-150.112233,0.000225,5]
[334213432,1722843041512,-239.06200877,0.00023,2]
[334213433,1722843041524,-1096.05831836,0.00023,2]
[334213435,1722843041540,-600.0,0.00023346,2]
[334213436,1722843041550,-1669.90838389,0.00023651,2]
[334213437,1722843041560,-423.535423,0.00023956,2]
[334213438,1722843041571,-150.112233,0.00024,3]
[334213440,1722843041580,-408.66985491,0.00024332,2]
[334213442,1722843041590,-200.0,0.00024658,15]
[334213444,1722843041599,-380.0,0.00024658,2]
[334213445,1722843041610,-189.52144051,0.00025,2]
[334213447,1722843041620,-772.25823972,0.00025,2]
[334213449,1722843041630,-154.82195475,0.00025,2]
[334213450,1722843041640,-1625.81763535,0.00025,2]
[334213451,1722843041650,-2595.14468135,0.00025,2]
[334213452,1722843041659,-912.4763458,0.00025,2]
[334213453,1722843041671,-18075.58880422,0.00025,7]
[334213456,1722843041687,-19742.82186789,0.00025,7]
[334213457,1722843041697,-13234.84134782,0.00025,2]
[334213459,1722843041707,-4181.02325297,0.00025,2]
[334213461,1722843041718,-1669.01055043,0.00025,2]
[334213463,1722843041728,-154.82195475,0.00025,15]
[334213464,1722843041737,-10268.61267832,0.00025,2]
[334213465,1722843041747,-309.56835119,0.00025,2]
[334213466,1722843041757,-5349.4569124,0.00025,30]
[334213467,1722843041770,-699.75742378,0.00025,30]
[334213468,1722843041793,-436.93890702,0.00025,30]
[334213469,1722843041859,-600.90391779,0.00021011,2]
[334213470,1722843041868,-269.69558364,0.00021011,2]
[334213471,1722843041878,-5452.32049857,0.00025,30]
[334213472,1722843041891,-9381.40710715,0.00025,30]
[334213473,1722843041901,-6093.57553268,0.00025,2]
[334213474,1722843041910,-1169.561694,0.00025,2]
[334213475,1722843041982,-189.82749556,0.00025,7]
[334213476,1722843041999,-220.67854838,0.00025,2]
[334213477,1722843042009,-155.59865243,0.00025,2]
[334213478,1722843042019,-346.09,0.00025,2]
[334213479,1722843042037,-1109.401135,0.00025,7]
[334213480,1722843042046,-1109.401135,0.00025,7]
[334213481,1722843042055,-150.112233,0.000255,6]
[334213482,1722843042064,-800.0,0.00025687,2]
[334213483,1722843042075,-597.19,0.000257,14]
[334213484,1722843042084,-639.7,0.000259,7]
[334213485,1722843042093,-1000.5,0.00026,31]
[334213486,1722843042101,-500.5,0.00026,31]
[334213487,1722843042110,-362.0,0.00026,31]
[334213488,1722843042119,-497.96,0.000266,31]
[334213489,1722843042129,-497.96,0.000266,31]
[334213490,1722843042138,-497.96,0.000266,31]
[334213491,1722843042147,-497.96,0.000266,31]
[334213492,1722843042156,-497.96,0.000266,31]
[334213493,1722843042166,-497.96,0.000266,31]
[334213494,1722843042176,-497.96,0.000266,31]
[334213495,1722843042186,-497.96,0.000266,31]
[334213496,1722843042196,-497.96,0.000266,31]
[334213497,1722843042206,-497.96,0.000266,31]
[334213498,1722843042216,-497.96,0.000266,31]
[334213499,1722843042226,-497.96,0.000266,31]
[334213500,1722843042236,-497.96,0.000266,31]
[334213501,1722843042246,-497.96,0.000266,31]
[334213502,1722843042256,-497.96,0.000266,31]
[334213503,1722843042266,-497.96,0.000266,31]
[334213504,1722843042284,-497.96,0.000266,31]
[334213505,1722843042293,-497.96,0.000266,31]
[334213506,1722843042303,-5094.91749243,0.0002661,30]
[334213507,1722843042313,-154.79103211,0.0002661,2]
[334213508,1722843042323,-154.79103211,0.0002661,2]
[334213509,1722843042333,-881.47696693,0.0002661,2]
[334213510,1722843042343,-160.54991199,0.00026639,2]
[334213511,1722843042352,-11795.65,0.000269,14]
[334213512,1722843042362,-150.112233,0.00027,5]
[334213513,1722843042372,-218.0361,0.00027167,2]
[334213514,1722843042382,-620.73624575,0.00027355,2]
[334213515,1722843042391,-2592.465358,0.00027397,120]
[334213516,1722843042401,-408.66985491,0.00027716,2]
[334213517,1722843042410,-165.940847,0.00027858,2]
[334213518,1722843042421,-9220.93801733,0.00028,120]
[334213519,1722843042430,-1000.0,0.00028278,2]
[334213520,1722843042440,-150.112233,0.000285,7]
[334213521,1722843042450,-255.16860493,0.000286,120]
[334213522,1722843042461,-1669.90838389,0.00028677,2]
[334213523,1722843042470,-597.19,0.000288,14]
[334213524,1722843042480,-497.96,0.000288,31]
[334213525,1722843042489,-497.96,0.000288,31]
[334213526,1722843042499,-497.96,0.000288,31]
[334213527,1722843042510,-497.96,0.000288,31]
[334213528,1722843042520,-497.96,0.000288,31]
[334213529,1722843042538,-497.96,0.000288,31]
[334213530,1722843042549,-497.96,0.000288,31]
[334213531,1722843042559,-497.96,0.000288,31]
[334213532,1722843042569,-497.96,0.000288,31]
[334213533,1722843042579,-497.96,0.000288,31]
[334213534,1722843042588,-497.96,0.000288,31]
[334213535,1722843042598,-497.96,0.000288,31]
[334213536,1722843042608,-497.96,0.000288,31]
[334213537,1722843042618,-497.96,0.000288,31]
[334213538,1722843042627,-497.96,0.000288,31]
[334213540,1722843042637,-497.96,0.000288,31]
[334213541,1722843042647,-487.49613267,0.00029744,60]
[334213542,1722843042657,-1813.87,0.00029744,120]
[334213543,1722843042667,-1418.8,0.00029744,120]
[334213545,1722843042678,-280.64645346,0.00029744,120]
[334213547,1722843042688,-151.0,0.0003,120]
[334213549,1722843042698,-150.112233,0.0003,7]
[334213551,1722843042710,-639.7,0.000303,7]
[334213553,1722843042721,-3160.45770161,0.00030303,60]
[334213555,1722843042731,-250.3410689,0.00030303,4]
[334213556,1722843042741,-497.96,0.00031,31]
[334213558,1722843042752,-497.96,0.00031,31]
[334213559,1722843042762,-497.96,0.00031,31]
[334213560,1722843042772,-497.96,0.00031,31]
[334213561,1722843042790,-497.96,0.00031,31]
[334213562,1722843042801,-497.96,0.00031,31]
[334213563,1722843042811,-497.96,0.00031,31]
[334213564,1722843042821,-497.96,0.00031,31]
[334213565,1722843042830,-497.96,0.00031,31]
[334213566,1722843042843,-497.96,0.00031,31]
[334213567,1722843042853,-497.96,0.00031,31]
[334213568,1722843042863,-497.96,0.00031,31]
[334213569,1722843042873,-497.96,0.00031,31]
[334213571,1722843042884,-497.96,0.00031,31]
[334213573,1722843042895,-497.96,0.00031,31]
[334213575,1722843042905,-497.96,0.00031,31]
[334213578,1722843042916,-497.96,0.00031,31]
[334213580,1722843042925,-497.96,0.00031,31]
[334213582,1722843042935,-497.96,0.00031,31]
[334213584,1722843042945,-1200.0,0.00031073,2]
[334213587,1722843042955,-408.66985491,0.00031101,2]
[334213589,1722843042965,-151.0,0.0003137,120]
[334213591,1722843042975,-150.112233,0.000315,8]
[334213593,1722843042985,-150.0,0.00031557,2]
[334213595,1722843042996,-581.305,0.00031557,2]
[334213597,1722843043007,-1411.0,0.00031557,2]
[334213602,1722843043016,-4256.82172642,0.0003156,31]
[334213606,1722843043034,-2592.465358,0.00031963,120]
[334213610,1722843043045,-151.0,0.0003274,120]
[334213614,1722843043055,-150.112233,0.00033,8]
[334213618,1722843043070,-497.96,0.000332,31]
[334213622,1722843043080,-497.96,0.000332,31]
[334213625,1722843043090,-497.96,0.000332,31]
[334213627,1722843043100,-497.96,0.000332,31]
[334213631,1722843043111,-497.96,0.000332,31]
[334213636,1722843043122,-497.96,0.000332,31]
[334213642,1722843043132,-497.96,0.000332,31]
[334213649,1722843043142,-497.96,0.000332,31]
[334213678,1722843043219,-497.96,0.000332,31]
[334213680,1722843043229,-497.96,0.000332,31]
[334213682,1722843043238,-497.96,0.000332,31]
[334213686,1722843043249,-497.96,0.000332,31]
[334213688,1722843043258,-497.96,0.000332,31]
[334213692,1722843043268,-497.96,0.000332,31]
[334213695,1722843043286,-497.96,0.000332,31]
[334213698,1722843043297,-497.96,0.000332,31]
[334213700,1722843043307,-497.96,0.000332,31]
[334213703,1722843043316,-218.0361,0.00033626,2]
[334213706,1722843043326,-1669.90838389,0.00033702,2]
[334213709,1722843043336,-151.0,0.00033986,15]
[334213712,1722843043345,-11795.65,0.00034,14]
[334213716,1722843043355,-597.19,0.00034,14]
[334213719,1722843043365,-1400.0,0.00034042,2]
[334213721,1722843043374,-151.0,0.0003411,120]
[334213723,1722843043383,-408.66985491,0.00034485,2]
[334213725,1722843043397,-150.112233,0.000345,10]
[334213727,1722843043406,-150.0,0.00034557,2]
[334213729,1722843043415,-507.0,0.00034557,2]
[334213731,1722843043425,-1411.0,0.00034557,2]
[334213733,1722843043435,-379.6665527,0.00034616,2]
[334213734,1722843043444,-153.0,0.00034616,2]
[334213735,1722843043455,-153.0,0.00034753,2]
[334213736,1722843043465,-153.0470608,0.00034753,2]
[334213737,1722843043475,-207.0130742,0.00034753,2]
[334213738,1722843043485,-153.0,0.00034753,2]
[334213739,1722843043495,-207.0130742,0.00034753,2]
[334213740,1722843043505,-294.2886399,0.00034753,2]
[334213741,1722843043516,-306.0,0.00034753,2]
[334213742,1722843043536,-207.0130742,0.00034753,2]
[334213743,1722843043546,-153.0,0.00034753,2]
[334213744,1722843043556,-294.2886399,0.00034753,2]
[334213745,1722843043569,-503.01738548,0.00035,120]
[334213746,1722843043580,-4135.19420899,0.00035,120]
[334213747,1722843043590,-81164.07530716,0.00035,14]
[334213748,1722843043602,-639.7,0.000354,30]
[334213749,1722843043612,-497.96,0.000354,31]
[334213750,1722843043622,-497.96,0.000354,31]
[334213751,1722843043633,-497.96,0.000354,31]
[334213752,1722843043644,-497.96,0.000354,31]
[334213754,1722843043655,-497.96,0.000354,31]
[334213756,1722843043665,-497.96,0.000354,31]
[334213758,1722843043677,-497.96,0.000354,31]
[334213759,1722843043688,-497.96,0.000354,31]
[334213760,1722843043698,-497.96,0.000354,31]
[334213762,1722843043711,-497.96,0.000354,31]
[334213763,1722843043722,-497.96,0.000354,31]
[334213765,1722843043732,-497.96,0.000354,31]
[334213767,1722843043742,-497.96,0.000354,31]
[334213769,1722843043752,-497.96,0.000354,31]
[334213771,1722843043765,-497.96,0.000354,31]
[334213772,1722843043795,-497.96,0.000354,31]
[334213775,1722843043811,-497.96,0.000354,31]
[334213777,1722843043830,-151.0,0.00035479,120]
[334213780,1722843043849,-294.2886399,0.00035575,2]
[334213783,1722843043867,-292.0344983,0.00035575,2]
[334213784,1722843043885,-413.1021517,0.00035575,2]
[334213785,1722843043901,-153.0,0.00035575,2]
[334213786,1722843043916,-153.0,0.00035575,2]
[334213789,1722843043934,-153.0,0.00035575,2]
[334213791,1722843043953,-207.0130742,0.00035575,2]
[334213793,1722843043970,-207.0130742,0.00035575,2]
[334213794,1722843043984,-206.7764624,0.00035575,2]
[334213795,1722843044004,-294.2886399,0.0003569,2]
[334213796,1722843044019,-160.0,0.00035809,3]
[334213797,1722843044043,-151.0,0.00036095,15]
[334213798,1722843044057,-151.0,0.00036095,15]
[334213799,1722843044071,-999.47999369,0.00036125,2]
[334213800,1722843044088,-165.940847,0.00036437,2]
[334213801,1722843044103,-2592.465358,0.0003653,120]
[334213802,1722843044118,-9760.09751083,0.000368,120]
[334213803,1722843044132,-270.26768137,0.000368,30]
[334213804,1722843044148,-230.14861832,0.000368,30]
[334213805,1722843044163,-151.0,0.00036849,120]
[334213806,1722843044178,-1600.0,0.00037164,2]
[334213807,1722843044192,-11795.65,0.000374,14]
[334213808,1722843044207,-1411.0,0.00037557,2]
[334213809,1722843044221,-408.66985491,0.00037869,2]
[334213810,1722843044235,-50229.37967876,0.00038,5]
[334213811,1722843044251,-35175.95875373,0.00038,30]
[334213812,1722843044834,-1991.65402436,0.00018346,2]
[334213813,1722843044844,-1382.92970052,0.00019451,2]
[334213814,1722843044853,-163.968193,0.00028493,2]
[334213815,1722843044863,-163.968193,0.00028493,120]
[334213816,1722843044873,-294.2886399,0.00034753,2]
[334213817,1722843044883,-153.0,0.00034753,2]
[334213818,1722843044892,-207.0130742,0.00034753,2]
[334213819,1722843044902,-47795.16957962,0.00038,30]
[334213820,1722843044914,-11257.02710784,0.00038,30]
[334213821,1722843044926,-586.6757247,0.00038,30]
[334213822,1722843044937,-2335.74200014,0.00038,30]
[334213887,1722843046644,-932.26890731,0.00011879,2]
[334213889,1722843046654,-1643.15842058,0.00019147,7]
[334213891,1722843046664,-154.77557542,0.0002,2]
[334213892,1722843046674,-232.04929669,0.00030303,4]
[334213893,1722843046689,-18.29177221,0.00030303,4]
[334213894,1722843046698,-153.0,0.00034616,2]
[334213896,1722843046708,-26156.51008042,0.00038,30]
[334213897,1722843046759,-14837.91398125,0.00038,30]
[334213898,1722843046787,-1286.896928,0.00038,7]
[334213900,1722843046797,-1286.896928,0.00038,7]
[334213901,1722843046807,-151.0,0.00038,7]
[334213903,1722843046953,-333.550213,0.00038,7]
[334213904,1722843046963,-333.550213,0.00038,7]
[334213905,1722843046973,-480.710804,0.00038,7]
[334213906,1722843046984,-480.710804,0.00038,7]
[334213907,1722843046995,-151.0,0.00038,7]
[334213908,1722843047006,-308.099535,0.00038,7]
[334213909,1722843047015,-308.099535,0.00038,7]
[334213910,1722843047024,-1109.401135,0.00038,7]
[334213911,1722843047047,-151.0,0.00038,7]
[334213912,1722843047057,-151.0,0.00038,7]
[334213913,1722843047067,-1109.401135,0.00038,7]
[334213914,1722843047077,-160.0,0.00038017,4]
[334213915,1722843047086,-151.0,0.00038204,15]
[334213916,1722843047096,-151.0,0.00038204,15]
[334213917,1722843047106,-151.0,0.00038219,120]
[334213918,1722843047116,-639.7,0.000383,30]
[334213919,1722843047126,-1669.90838389,0.00038728,2]
[334213920,1722843047136,-172.843978,0.00038795,2]
[334213921,1722843047146,-154.64261285,0.00039125,50]
[334213922,1722843047156,-151.0,0.00039589,120]
[334213923,1722843047167,-9654.49028186,0.0003961,3]
[334213924,1722843047178,-150.0,0.00039828,2]
[334213925,1722843047190,-500.0,0.0004,14]
[334213926,1722843047201,-1017.0,0.0004,120]
[334213927,1722843047210,-4216.3024206,0.0004,24]
[334213928,1722843047220,-614.908226,0.0004,14]
[334213929,1722843047229,-614.908226,0.0004,14]
[334213930,1722843047239,-1439.569051,0.0004,14]
[334213931,1722843047248,-1439.569051,0.0004,14]
[334213932,1722843047257,-500.0,0.0004,7]
[334213933,1722843047266,-500.0,0.0004,7]
[334213934,1722843047277,-500.0,0.0004,7]
[334213935,1722843047293,-500.0,0.0004,7]
[334213936,1722843047302,-500.0,0.0004,7]
[334213937,1722843047312,-500.0,0.0004,7]
[334213938,1722843047321,-500.0,0.0004,7]
[334213939,1722843047331,-500.0,0.0004,7]
[334213940,1722843047340,-500.0,0.0004,7]
[334213941,1722843047349,-500.0,0.0004,7]
[334213942,1722843047358,-500.0,0.0004,7]
[334213943,1722843047367,-500.0,0.0004,7]
[334213944,1722843047377,-500.0,0.0004,7]
[334213945,1722843047386,-175.63959794,0.0004,7]
[334213946,1722843047396,-40014.07985855,0.0004,30]
[334213947,1722843047405,-200.0,0.0004,2]
[334213948,1722843047415,-218.0361,0.00040086,2]
[334213949,1722843047424,-9038.99607119,0.0004009,60]
[334213950,1722843047434,-5177.28540593,0.000402,120]
[334222363,1722844232574,-154.77557542,0.00014,2]
[334222364,1722844232584,-174.692072,0.00014247,2]
[334222366,1722844232595,-172.843978,0.00014247,2]
[334222367,1722844232604,-300.0,0.00017588,2]
[334222368,1722844232614,-8064.96337458,0.00017589,2]
[334222369,1722844232626,-1760.49637946,0.00017589,2]
[334222370,1722844232642,-15074.54024596,0.00017589,2]
[334222371,1722844232652,-7001.77703298,0.0001784,2]
[334222372,1722844232661,-35012.4181319,0.00018346,2]
[334222373,1722844232671,-417.47709599,0.00018349,2]
[334222375,1722844232680,-318.45955978,0.00018449,2]
[334222376,1722844232690,-164.97908794,0.00018449,2]
[334222377,1722844232699,-232.61188336,0.00018449,2]
[334222378,1722844232709,-157.67306,0.0001845,2]
[334222379,1722844232719,-352.447151,0.0001845,2]
[334222381,1722844232728,-321.087861,0.0001845,2]
[334222383,1722844232737,-318.026646,0.0001845,2]
[334222386,1722844232747,-321.087862,0.0001845,2]
[334222388,1722844232756,-275.738245,0.0001845,2]
[334222390,1722844232766,-256.87029,0.0001845,2]
[334222392,1722844232776,-352.447151,0.00018681,2]
[334222394,1722844232786,-321.087861,0.00018681,2]
[334222396,1722844232796,-318.026646,0.00018681,2]
[334222397,1722844232806,-321.087862,0.00018681,2]
[334222398,1722844232817,-275.738245,0.00018681,2]
[334222399,1722844232828,-256.87029,0.00018681,2]
[334222400,1722844232838,-808.0041696,0.00018786,2]
[334222401,1722844232849,-808.0041696,0.00018825,2]
[334222402,1722844232859,-352.447151,0.00018911,2]
[334222403,1722844232870,-321.087861,0.00018911,2]
[334222404,1722844232885,-318.026646,0.00018911,2]
[334222405,1722844232895,-321.087862,0.00018911,2]
[334222406,1722844232905,-275.738245,0.00018911,2]
[334222407,1722844232915,-256.87029,0.00018911,2]
[334222408,1722844232925,-183.12142007,0.00018921,2]
[334222409,1722844232935,-154.96605477,0.00018969,2]
[334222410,1722844232945,-250.0,0.00019041,2]
[334222411,1722844232955,-352.447151,0.00019142,2]
[334222412,1722844232965,-321.087861,0.00019142,2]
[334222413,1722844232976,-318.026646,0.00019142,2]
[334222414,1722844232987,-321.087862,0.00019142,2]
[334222415,1722844232997,-275.738245,0.00019142,2]
[334222416,1722844233006,-256.87029,0.00019142,2]
[334222417,1722844233016,-1643.15842058,0.00019147,7]
[334222418,1722844233026,-1162.86940617,0.00019147,2]
[334222419,1722844233037,-24215.26659285,0.00019157,2]